Cogmind - Beta 15 @@@ ROGUE MODE // 2025.09.28 @ 10:34:23 Player: minuslipton Result: Destroyed by C-40 Crusher with Compactor Performance ------------- Evolutions (3) 1500 Regions Visited (6) 1200 Robots Destroyed (39) 195 Value Destroyed (807) 807 Prototype IDs (2) 40 Alien Tech Used (0) 0 Bonus (0) 0 TOTAL SCORE: 3742 Bonus ------- None Cogmind --------- Core Integrity 0/700 Matter 66/300 Energy 250/250 System Corruption 3% Temperature Cool (0) Movement Core (50) Location -7/Waste Parts ------- > --- POWER (1) -------- (None) > --- PROPULSION (4) --- (None) > --- UTILITY (5) ------ Medium Battery Visual Processing Unit > --- WEAPON (3) ------- (None) > --- INVENTORY (5) ---- Improved Coolant Injector Improved Medium Armor Plating Mini Drone Bay (3/3) KE Penetrator Peak State ------------ > --- POWER ------------ Light Ion Engine > --- PROPULSION ------- Flight Unit Flight Unit Flight Unit Flight Unit > --- UTILITY ---------- Visual Processing Unit Transmission Jammer Improved Medium Armor Plating Hacking Suite Hacking Suite > --- WEAPON ----------- Light Assault Rifle Light Assault Rifle Precision Assault Rifle > --- INVENTORY -------- Flight Unit Medium Battery Improved Medium Armor Plating Plasma Cannon [Rating: 29] Favorites ----------- Power Light Ion Engine Engine Light Ion Engine Power Core Light Nuclear Core Propulsion Aluminum Leg Treads Light Treads Leg Aluminum Leg Hover Unit Hover Unit Flight Unit Flight Unit Utility Medium Battery Device Transmission Jammer Storage Medium Battery Processor Visual Processing Unit Hackware Hacking Suite Protection Improved Medium Armor Plating Weapon Assault Rifle Energy Cannon Plasma Cannon Ballistic Gun Assault Rifle Launcher Grenade Launcher Slashing Weapon Greatsword Build | -11 -10 -9 -9 -8 -7 -7 ------- Run | Yrd Mat Mat Min Mat Fac Was Slots Evolved 6 | . . 2 . 2 2 . Power . | . . . . . . . Propulsion 2 | . . 2 . . . . Utility 3 | . . . . 2 1 . Weapon 1 | . . . . . 1 . Parts Attached 38 | 5 5 9 8 3 8 . Power 4 | 1 . 1 1 . 1 . Engine 3 | 1 . 1 1 . . . Core 1 | . . . . . 1 . Reactor . | . . . . . . . Propulsion 13 | 2 . 6 4 . 1 . Treads 1 | . . 1 . . . . Leg 5 | 2 . 3 . . . . Wheel . | . . . . . . . Hover 2 | . . 2 . . . . Flight 5 | . . . 4 . 1 . Utility 9 | . 3 . 1 3 2 . Device 1 | . . . . . 1 . Storage 3 | . 3 . . . . . Processor 2 | . . . . 2 . . Hackware 2 | . . . 1 . 1 . Protection 1 | . . . . 1 . . Artifact . | . . . . . . . Weapon 12 | 2 2 2 2 . 4 . Energy Gun . | . . . . . . . Energy Cannon 1 | . . . . . 1 . Ballistic Gun 8 | 2 2 1 2 . 1 . Ballistic Cannon . | . . . . . . . Launcher 2 | . . 1 . . 1 . Special Weapon . | . . . . . . . Impact Weapon . | . . . . . . . Slashing Weapon 1 | . . . . . 1 . Piercing Weapon . | . . . . . . . Special Melee Weapon . | . . . . . . . Unidentified Prototypes 1 | . . . . . 1 . Parts Lost 22 | . . 10 3 . 8 1 Power 3 | . . 2 . . 1 . Propulsion 12 | . . 5 2 . 5 . Utility 1 | . . . . . 1 . Weapon 6 | . . 3 1 . 1 1 Highest Loss Streak 7 | . . 7 3 . 6 1 To Critical Strikes 1 | . . . . . . 1 Average Backups 7 | . 7 8 9 3 4 3 Power . | . . . . . . . Propulsion 1 | . 1 . 2 1 . . Utility 2 | . 2 3 3 1 2 3 Weapon 2 | . 2 4 2 1 . . Tool/Special . | . . . . . . . Unused Backups 7 | . 1 . 2 1 . 3 Power . | . . . . . . . Propulsion 1 | . . . 1 . . . Utility 4 | . 1 . . . . 3 Weapon 2 | . . . 1 1 . . Tool/Special . | . . . . . . . Average Slot Usage (%) 78 | . 98 73 71 98 58 19 Engine 8 | . 14 5 9 9 3 . Leg 13 | . 28 18 . . . . Hover 5 | . . 3 15 . . . Flight 3 | . . . 3 36 15 . Storage 19 | . 26 22 21 5 . 3 Processor 1 | . . . . 16 7 7 Hackware 1 | . . . . 9 9 . Ballistic Gun 21 | . 28 20 21 18 12 . Peak Build Rating 29 | 5 8 10 11 19 29 13 Average Rating 8 | 3 7 7 7 17 17 12 On Entrance 8 | . 5 8 7 11 19 10 Naked Turns . | . . . . . . . Heaviest Build 89 | 7 89 87 89 12 18 7 Greatest Support 40 | 20 20 40 16 16 16 3 Greatest Overweight (x) 29 | . 4 27 29 . 3 2 Average Overweight (x) 1 | . 2 3 5 . . 1 Largest Inventory Capacity 25 | 5 25 25 25 5 5 5 Average Capacity 19 | 5 19 25 24 5 5 5 Most Carried 13 | 2 11 12 13 5 5 5 Average Carried 7 | . 7 8 9 3 4 3 Final Capacity 25 | 5 25 25 5 5 5 5 Final Carried 11 | . 11 9 3 5 2 4 Class Distribution -------------------- 80% | Mutant 10% | Scavenger-Mutant 7% | Scavenger-Sprinter Dominant Class ---------------- Mutant | -10/Materials Mutant | -9/Materials Mutant | -9/Mines Scavenger-Sprinter | -8/Materials Mutant | -7/Factory Mutant | -7/Waste Resources | -11 -10 -9 -9 -8 -7 -7 ----------- Run | Yrd Mat Mat Min Mat Fac Was Matter Collected 916 | 230 314 177 41 . 94 60 Remotely . | . . . . . . . Salvage Created 1005 | 42 403 294 52 . 214 . Parts 73 | 1 37 14 6 . 15 . Haulers Intercepted . | . . . . . . . Recyclers Shooed 1 | . . . . . 1 . Parts Field Recycled . | . . . . . . . Retrieved Matter . | . . . . . . . Parts Self-Destructed . | . . . . . . . Prevented . | . . . . . . . Kills | -11 -10 -9 -9 -8 -7 -7 ------- Run | Yrd Mat Mat Min Mat Fac Was Combat Hostiles Destroyed 26 | 1 8 7 4 . 6 . Guns 19 | 1 8 3 4 . 3 . AOE 7 | . . 4 . . 3 . Classes Destroyed 9 | 1 6 1 . . 1 . Worker 3 | . 2 . . . 1 . Builder 1 | . 1 . . . . . Recycler 4 | . 2 1 . . 1 . Operator 1 | . 1 . . . . . Watcher 4 | . 3 1 . . . . Swarmer 14 | . 7 . 4 . 3 . Grunt 10 | 1 1 6 . . 2 . Sentry 1 | . . 1 . . . . Programmer 1 | . . . . . 1 . Best Kill Streak 5 | 1 5 4 2 . 5 . Combat Bots Only 4 | 1 3 4 2 . 3 . Max Kills in Single Turn 2 | 1 2 1 2 . 2 . Gunslinging 1 | . 1 . 1 . . . Exploded 2 | . . 1 . . 2 . Melee . | . . . . . . . Uniques/NPCs Destroyed . | . . . . . . . Combat | -11 -10 -9 -9 -8 -7 -7 -------- Run | Yrd Mat Mat Min Mat Fac Was Hostile Shots Fired 380 | 5 34 84 59 4 190 4 Missed 149 | 3 14 23 22 1 86 . Hits 231 | 2 20 61 37 3 104 4 Melee 4 | . . . . . . 4 Projectile 227 | 2 20 61 37 3 104 . Critical Strikes 5 | . . . . . 4 1 Part Disruptions 1 | . . . . . 1 . Damage Taken 2870 | 22 160 823 287 36 1321 221 Core 1024 | . . 209 82 6 559 168 Absorbed by Shields . | . . . . . . . Core Remaining (%) 81 | 100 100 . 27 98 . . Volleys Fired 111 | 5 40 43 11 . 12 . Largest 3 | 2 2 2 2 . 3 . Hottest 108 | 40 40 50 40 . 108 . Shots Fired 200 | 10 80 68 17 . 25 . Gun 189 | 10 80 63 17 . 19 . Cannon 1 | . . . . . 1 . Launcher 10 | . . 5 . . 5 . Special . | . . . . . . . Kinetic 189 | 10 80 63 17 . 19 . Thermal 1 | . . . . . 1 . Explosive 10 | . . 5 . . 5 . Electromagnetic . | . . . . . . . Robot Hit Streak 6 | 3 5 6 4 . 5 . Robot Miss Streak 7 | 2 7 6 7 . 6 . Penetration Max . | . . . . . . . Secondary Targets 4 | . 2 . 1 . 1 . Max Gunslinging Chain 1 | . 1 . 1 . 1 . Shots Hit Robots 95 | 6 34 32 8 . 11 4 Core Hits 55 | 2 20 17 4 . 12 . Critical Kills . | . . . . . . . Critical Parts Destroyed 1 | . 1 . . . . . Critical Strikes 1 | . 1 . . . . . Destroy 1 | . 1 . . . . . Melee Attacks 5 | . . . . . 1 4 Impact . | . . . . . . . Slashing 5 | . . . . . 1 4 Piercing . | . . . . . . . Sneak Attacks . | . . . . . . . Combat Hostiles . | . . . . . . . Follow-up Attacks . | . . . . . . . Damage Inflicted 2187 | 88 472 713 89 . 717 108 Guns 1133 | 88 469 342 89 . 145 . Cannons 30 | . . . . . 30 . Explosions 886 | . . 351 . . 535 . Melee 108 | . . . . . . 108 Ramming 30 | . 3 20 . . 7 . Kinetic 1133 | 88 469 342 89 . 145 . Thermal 69 | . . . . . 69 . Explosive 847 | . . 351 . . 496 . Electromagnetic . | . . . . . . . Impact . | . . . . . . . Slashing 108 | . . . . . . 108 Piercing . | . . . . . . . Highest Corruption 3 | . . . . . 3 3 Average Corruption 2 | . . . . . 2 3 Corruption Purged . | . . . . . . . Corruption Blocked . | . . . . . . . Effects 2 | . . . . . 2 . Message Errors 1 | . . . . . 1 . Parts Rejected 1 | . . . . . 1 . Overload Shots . | . . . . . . . Overflow Damage 22 | . . 9 . . 13 . Projectiles . | . . . . . . . Explosions 22 | . . 9 . . 13 . Melee . | . . . . . . . Knockbacks 1 | . . 1 . . . . Impact 1 | . . 1 . . . . Kinetic . | . . . . . . . Secondary . | . . . . . . . Self-Inflicted Damage 112 | . . 1 . . 111 . Shots 3 | . . . . . 3 . Rammed 2 | . . 1 . . 1 . Targets Rammed 4 | . 1 2 . . 1 . Kicked 2 | . 1 1 . . . . Crushed . | . . . . . . . Highest Temperature 40 | . . 29 1 5 40 . Average Temperature 12 | . . 9 1 5 16 . Received Heat Transfer 669 | 12 . 369 . 9 279 . Siege Activations . | . . . . . . . Martial Activations . | . . . . . . . Shielding Activations . | . . . . . . . Robots Disrupted . | . . . . . . . Combat Hostiles . | . . . . . . . Robots Corrupted . | . . . . . . . Combat Hostiles . | . . . . . . . Parts Fried . | . . . . . . . Impact Corruptions . | . . . . . . . Robots Melted . | . . . . . . . Combat Hostiles . | . . . . . . . Parts Melted . | . . . . . . . Heat Transferred 100 | . . . . . 100 . Parts Sabotaged . | . . . . . . . Parts Stolen . | . . . . . . . Parts Stripped . | . . . . . . . Power Chain Reactions . | . . . . . . . Alert | -11 -10 -9 -9 -8 -7 -7 ------- Run | Yrd Mat Mat Min Mat Fac Was Maximum Alert Level . | . . . . . . . Low Security (%) 100 | 100 100 100 100 100 100 100 Level 1 . | . . . . . . . Level 2 . | . . . . . . . Level 3 . | . . . . . . . Level 4 . | . . . . . . . Level 5 . | . . . . . . . High Security . | . . . . . . . Max Security . | . . . . . . . Peak Influence 159 | 20 91 124 40 47 159 55 Initial 55 | . 13 . . . 21 55 Average 21 | 2 29 28 4 5 36 41 Influence Increases 981 | 20 231 206 80 57 387 . Destroy 0b10 Robot/C 520 | 20 160 140 80 . 120 . Destroy 0b10 Robot/NC 65 | . 45 10 . . 10 . Destroy Leader 78 | . 26 22 . . 30 . Successful Hack 30 | . . . . 12 18 . Disable Machine 30 | . . 15 . . 15 . Destroy Structure 93 | . . 19 . . 74 . Partial Spotted 45 | . . . . 15 30 . Lose Combat Pursuer 120 | . . . . 30 90 . Influence Decreases 976 | . 249 208 80 10 275 154 Entered New Map 139 | . 7 2 . . 26 104 Time Decay 582 | . 242 152 60 10 98 20 Lost Part 154 | . . 54 20 . 70 10 Lost Ally 20 | . . . . . . 20 Purge Threat 81 | . . . . . 81 . Squads Dispatched 6 | . . 1 . . 5 . Investigation 4 | . . . . . 4 . Extermination 1 | . . . . . 1 . Reinforcement 1 | . . 1 . . . . Assault . | . . . . . . . Garrison . | . . . . . . . Intercept . | . . . . . . . Searches Triggered . | . . . . . . . Construction Impeded . | . . . . . . . Haulers Reinforced . | . . . . . . . Active Scanning Responses . | . . . . . . . Cargo Convoy Interrupts . | . . . . . . . Stealth | -11 -10 -9 -9 -8 -7 -7 --------- Run | Yrd Mat Mat Min Mat Fac Was Distress Signals 4 | . 2 1 . 1 . . Communications Jammed . | . . . . . . . Distress Signals . | . . . . . . . Times Spotted 66 | 1 17 14 9 8 16 1 Peak Tracking Total 10 | 1 5 4 4 10 7 1 Tactical Retreats 2 | . . . . 1 1 . Traps | -11 -10 -9 -9 -8 -7 -7 ------- Run | Yrd Mat Mat Min Mat Fac Was Traps Triggered 3 | . . . . . 3 . Indirectly . | . . . . . . . Trap Hack Attempts . | . . . . . . . Triggered . | . . . . . . . Disarmed . | . . . . . . . Reprogrammed . | . . . . . . . Reused . | . . . . . . . Traps Extracted . | . . . . . . . Installed . | . . . . . . . Triggered . | . . . . . . . Machines | -11 -10 -9 -9 -8 -7 -7 ---------- Run | Yrd Mat Mat Min Mat Fac Was Machines Disabled 2 | . . 1 . . 1 . Max in Single Turn 1 | . . 1 . . 1 . Machines Repaired . | . . . . . . . Machines Dismantled . | . . . . . . . Machines Sabotaged . | . . . . . . . Overloaded Fab Kills . | . . . . . . . Hacking | -11 -10 -9 -9 -8 -7 -7 --------- Run | Yrd Mat Mat Min Mat Fac Was Machines Accessed 8 | . . . . 2 6 . Terminals 4 | . . . . 1 3 . Fabricators 1 | . . . . . 1 . Repair Stations 1 | . . . . . 1 . Recycling Units 2 | . . . . 1 1 . Scanalyzers . | . . . . . . . Garrison Access . | . . . . . . . Total Hacks 19 | . . . . 6 13 . Successful 13 | . . . . 5 8 . Failed 6 | . . . . 1 5 . Catastrophic 1 | . . . . . 1 . Database Lockouts . | . . . . . . . Manual . | . . . . . . . Terminals 10 | . . . . 3 7 . Fabricators 2 | . . . . . 2 . Repair Stations 3 | . . . . . 3 . Recycling Units 4 | . . . . 3 1 . Scanalyzers . | . . . . . . . Garrison Access . | . . . . . . . Terminal Hacks 6 | . . . . 2 4 . Record 3 | . . . . . 3 . Unreport Threat 1 | . . . . . 1 . Security Status 1 | . . . . 1 . . Surveillance Status 1 | . . . . 1 . . Fabricator Hacks 2 | . . . . . 2 . Network Status 1 | . . . . . 1 . Build 1 | . . . . . 1 . Repair Station Hacks 1 | . . . . . 1 . Scan Component 1 | . . . . . 1 . Recycling Unit Hacks 4 | . . . . 3 1 . Process 1 | . . . . 1 . . Report Inventory 2 | . . . . 1 1 . Retrieve Matter 1 | . . . . 1 . . Scanalyzer . | . . . . . . . Garrison Access Hacks . | . . . . . . . Unauthorized Hacks . | . . . . . . . Terminals . | . . . . . . . Fabricators . | . . . . . . . Repair Stations . | . . . . . . . Recycling Units . | . . . . . . . Scanalyzers . | . . . . . . . Garrison Access . | . . . . . . . Data Cores Recovered 1 | . 1 . . . . . Used . | . . . . . . . Hacking Detections 5 | . . . . 1 4 . Full Trace Events 3 | . . . . . 3 . Feedback Events . | . . . . . . . Feedback Blocked . | . . . . . . . Robot Schematics Acquired . | . . . . . . . Robots Built . | . . . . . . . Authchips . | . . . . . . . Time . | . . . . . . . Total Robot Build Rating . | . . . . . . . Part Schematics Acquired . | . . . . . . . Parts Built 1 | . . . . . 1 . Authchips . | . . . . . . . Time 152 | . . . . . 152 . Total Part Build Rating 5 | . . . . . 5 . Parts Repaired . | . . . . . . . Time . | . . . . . . . Parts Recycled . | . . . . . . . Recycled Matter . | . . . . . . . Retrieved Matter . | . . . . . . . Retrieved Components . | . . . . . . . Parts Scanalyzed . | . . . . . . . Part Schematics Acquired . | . . . . . . . Parts Damaged . | . . . . . . . Bothacking | -11 -10 -9 -9 -8 -7 -7 ------------ Run | Yrd Mat Mat Min Mat Fac Was Used RIF Installer . | . . . . . . . Robots Hacked . | . . . . . . . Non-combat . | . . . . . . . Combat . | . . . . . . . Robot Hacks Applied . | . . . . . . . Relay Couplers Released . | . . . . . . . Fabnet Peak Effective % . | . . . . . . . Robots Rewired . | . . . . . . . Allies Hacked . | . . . . . . . Hacks Repelled . | . . . . . . . Allies | -11 -10 -9 -9 -8 -7 -7 -------- Run | Yrd Mat Mat Min Mat Fac Was Total Allies 1 | . . . . . . 1 Largest Group 1 | . . . . . . 1 Highest-Rated Group 31 | . . . . . . 31 Highest-Rated Ally 31 | . . . . . . 31 Total Orders . | . . . . . . . Ally Attacks 3 | . . . . . . 3 Total Damage 62 | . . . . . . 62 Kills . | . . . . . . . Allies Corrupted . | . . . . . . . Allies Melted . | . . . . . . . Intel | -11 -10 -9 -9 -8 -7 -7 ------- Run | Yrd Mat Mat Min Mat Fac Was Active Infowar (turns) 359 | . . . . 56 252 51 Optics 359 | . . . . 56 252 51 Jamming 25 | . . . . . 25 . Robot Analysis Total . | . . . . . . . Derelict Logs Recovered 1 | . . . 1 . . . Drone Launches . | . . . . . . . Drone Recoveries . | . . . . . . . Exploration | -11 -10 -9 -9 -8 -7 -7 ------------- Run | Yrd Mat Mat Min Mat Fac Was Turns Passed 2244 | 92 663 560 570 56 252 51 Spaces Moved 1052 | 69 202 120 152 103 378 28 Core 146 | 21 . 1 6 . 90 28 Treads 28 | . . 28 . . . . Legs 323 | 48 202 73 . . . . Wheels . | . . . . . . . Hover 101 | . . 18 83 . . . Flight 454 | . . . 63 103 288 . Fastest Speed 31 | 50 120 260 31 31 31 100 Average Speed 170 | 98 260 359 342 31 47 125 Slowest Speed 1500 | 120 400 1400 1500 31 200 150 Overloaded Moves . | . . . . . . . Propulsion Burnouts . | . . . . . . . Robots Hopped 1 | . . . 1 . . . Potential Cave-ins 1 | . . . . . 1 . Cave-ins Triggered . | . . . . . . . Exploration Rate (%) 20 | 8 34 15 31 21 17 15 Regions Visited 6 Branch Regions 1 Pre-discovered Areas . | . . . . . . . Known Exits Taken . | . . . . . . . Unknown Exits Taken 5 | 1 1 1 1 1 . . Scrap Searched . | . . . . . . . Spaces Dug . | . . . . . . . Terrain Destroyed 114 | . . 20 . . 94 . Melee . | . . . . . . . Projectile . | . . . . . . . AOE 114 | . . 20 . . 94 . Terrain Rammed . | . . . . . . . Walls Destroyed . | . . . . . . . Machines Disabled . | . . . . . . . Actions | -11 -10 -9 -9 -8 -7 -7 --------- Run | Yrd Mat Mat Min Mat Fac Was Total 1309 | 83 262 185 184 126 433 36 Wait 29 | . . . . 15 14 . Move 1045 | 68 201 119 149 102 378 28 Hop 1 | . . . 1 . . . Pick Up 45 | 5 14 7 7 5 4 3 Fast Attach 1 | . . . . . 1 . Attach 34 | 5 2 9 6 2 9 1 Detach 5 | . . . . . 5 . Swap 14 | . 3 5 3 1 2 . Drop 15 | . 1 . 7 1 6 . Fire 111 | 5 40 43 11 . 12 . Melee 5 | . . . . . 1 4 Ram 2 | . . 1 . . 1 . Kick 2 | . 1 1 . . . . Crush . | . . . . . . . Escape Stasis . | . . . . . . . Rewire . | . . . . . . . Trap . | . . . . . . . Miscellaneous . | . . . . . . . Route ------- -11/Scrapyard -10/Materials (discovered 3 exits: [*Mat] / [*Min] / [*Sub]) -9/Materials -9/Mines -8/Materials -7/Factory -7/Waste History --------- Turn | Location | Event 2 | -11/Scrapyard | Met Revision 17 68 | -11/Scrapyard | Discovered new exit (range 8) 93 | -11/Scrapyard | Entered Materials 171 | -10/Materials | Discovered new exit (range 12) 281 | -10/Materials | Discovered new exit (range 7) 309 | -10/Materials | Build established: Mutant 434 | -10/Materials | Discovered new exit (range 14) 756 | -10/Materials | Entered another Materials area 756 | -9/Materials | Evolved 2 slots: Propulsion x2 960 | -9/Materials | Lost 3 parts (2n1w) 1055 | -9/Materials | Core integrity fell below 50% 1080 | -9/Materials | Lost 7 parts (2p3n2w) 1275 | -9/Materials | Discovered new exit (range 9) 1316 | -9/Materials | Entered Mines 1467 | -9/Mines | Discovered new exit (range 14) 1472 | -9/Mines | Learned Materials interactive machine intel 1574 | -9/Mines | Met a Derelict bent on vengeance 1769 | -9/Mines | Lost 3 parts (2n1w) 1886 | -9/Mines | Entered Materials 1886 | -8/Materials | Evolved 2 slots: Utility x2 1887 | -8/Materials | Loaded intel: 19 interactive machine locations 1938 | -8/Materials | Discovered new exit (range 3) 1942 | -8/Materials | Entered Factory 1942 | -7/Factory | Evolved 2 slots: Utility x1, Weapon x1 2129 | -7/Factory | Lost 6 parts (1p5n) 2174 | -7/Factory | Core integrity fell below 50% 2179 | -7/Factory | Fabricated Cld. Cesium-ion Thruster? 2194 | -7/Factory | Sucked down chute 2194 | -7/Factory | Entered Waste 2195 | -7/Waste | Met a frightened Derelict 2223 | -7/Waste | Spotted C-40 Crusher 2237 | -7/Waste | Core integrity fell below 20% 2245 | -7/Waste | Destroyed by C-40 Crusher with Compactor Last Messages --------------- terrible stories about what compactors can do if you allow them to get too close... Maybe together we can make it." Move into an ally to swap places with them. Acquired Broken Imp. Coolant Injector. Acquired Mni. Drone Bay. Acquired KE Penetrator. C-40 Crusher suffers critical hit (Burn). 5Y-78R(g) Imp. Heat Sink crushed. 5Y-78R(g) Beamcaster crushed. 5Y-78R(g) Carbon-fiber Leg crushed. 5Y-78R(g) suffers critical hit (Destroy). 5Y-78R(g) Lgt. Angular Momentum Engine crushed. 5Y-78R(g) Imp. Heat Sink crushed. 5Y-78R(g) suffers critical hit (Destroy). 5Y-78R(g) destroyed. Acquired 60 matter. Imp. Heat Sink crushed. Critical hit (Destroy). Greatsword destroyed. Map ----- +----------------------------------------------------+ | ?????????????????????????????????????????????????? | | ?????????????????????????????????????????????????? | | ?????????????????????????????????????????????????? | | ?????????????????????????????????????????????????? | | ?????????????????????????????????????????????????? | | ?????????????????????????????????????????????????? | | ?????????????????????????????????????????????????? | | ?????????????????????????????????????????????????? | | ?????????????????????????????????????????????????? | | ?????????????????????????????????????????????????? | | ?????????????????????????????????????????????????? | | ?????????????????????????????????????????????????? | | ?????????????????????????????????????????????????? | | ?????????????????????????????????????????????????? | | ?????????????????????????????????????????????????? | | ?????????????????????????????????????????????????? | | ?????????????????????????????????????????????????? | | ??????????????????????????#####??????????????????? | | ?????????????????????????? #??????????????????? | | ???????????############??? #??????????????????? | | ???????????# #??? #??????????????????? | | ???????????# #??? #??????????????????? | | ???????????# #### #??????????????????? | | ???????????# #??????????????????? | | ???????????# #??????????????????? | | ???????????# @ #??????????????????? | | ???????????# =[CC] #??????????????????? | | ???????????# ####CC #??????????????????? | | ???????????# #??? #??????????????????? | | ???????????# #??? #??????????????????? | | ???????????############??? #??????????????????? | | ??????????????????????????? #??????????????????? | | ??????????????????????????? ??????????????????? | | ??????????????????????????? ?????????????????? | | ??????????????????????????? ????????????????? | | ???????????????????????????? ???????????????? | | ???????????????????????????? #####??????????????? | | ???????????????????????????? #??????????????????? | | ???????????????????????????? #??????????????????? | | ????????????????????????????? #??????????????????? | | ?????????????????????????????/#??????????????????? | | ????????????????????????????? ???????????????????? | | ?????????????????????????????????????????????????? | | ?????????????????????????????????????????????????? | | ?????????????????????????????????????????????????? | | ?????????????????????????????????????????????????? | | ?????????????????????????????????????????????????? | | ?????????????????????????????????????????????????? | | ?????????????????????????????????????????????????? | | ?????????????????????????????????????????????????? | +----------------------------------------------------+ Best States ------------- Heat Dissipation 34 Energy Generation 14 Energy Capacity 425 Matter Stores 300 Matter Capacity 300 Sight Range 18 Terrain Scan Density 85 Jamming Range 12 Armor Coverage 225 Evasion (%) 63 Recoil Reduction 1 Offensive Hacking 20 Item Schematics ----------------- None Robot Schematics ------------------ None Fabricated ------------ Cld. Cesium-ion Thruster | x1 | -7/Factory | Preloaded Repaired ---------- Nothing Alien Tech Used ----------------- None Achievements -------------- Everything Is Under Control Just What I Needed Made in Tau Ceti IV Party Time Risk Taker Challenges ------------ None Game ------ Seed TractorAdvancedTerrabomb Manual? 0 Play Time 00:27:38 Cumulative 0.8 hours Start 2025.09.28 @ 10:07:08 End 2025.09.28 @ 10:34:23 Sessions 1 Manual Loads 0 Difficulty Rogue Special Mode None Game No. 2 Rogue 2 Adventurer 0 Explorer 0 Win Type - Total 0 Types 0/0/0/0/0/0/0/0/0/0 Lore% 0 Gallery% 2 Achievement% 3 Wizard Run 0 Options --------- Layout 1 ASCII 0 Keyboard 0 Movement Mouse Keybinds 0 Fullscreen 1 Font 24/X11 Map View 50x35 Zoom Use 0% Tactical HUD 0 Map Filters NONE Filters NONE Steam 1 RUN: cab77c1c-65ab-4ded-b576-a3476b476222